[Event "Early-Titled-Tuesday-Blitz-August-29-2023"]
[Site "Chess.com"]
[Date "2023.08.29"]
[Round "7"]
[White "Sina_Movahed"]
[Black "Elsa167"]
[Result "1/2-1/2"]
[WhiteElo "2977"]
[BlackElo "2880"]
[TimeControl "180+1"]
[EndTime "9:16:53 PDT"]
[Termination "Game drawn - insufficient material"]

1. e4 {[%clk 0:03:00.9]} 1... c5 {[%clk 0:03:00.1]} 2. Nf3 {[%clk 0:03:00.8]}
2... d6 {[%clk 0:03:00.5]} 3. d4 {[%clk 0:03:00.6]} 3... cxd4 {[%clk 0:03:01.4]}
4. Nxd4 {[%clk 0:03:01.5]} 4... Nf6 {[%clk 0:03:02.1]} 5. Nc3 {[%clk 0:03:02]}
5... Nc6 {[%clk 0:03:02.4]} 6. Bg5 {[%clk 0:03:02.5]} 6... e6 {[%clk 0:03:01]}
7. Qd3 {[%clk 0:03:02.4]} 7... Qb6 {[%clk 0:03:00.8]} 8. O-O-O {[%clk 0:03:02]}
8... Qxd4 {[%clk 0:03:01]} 9. Qxd4 {[%clk 0:03:02.9]} 9... Nxd4 {[%clk
0:03:01.9]} 10. Rxd4 {[%clk 0:03:03.6]} 10... a6 {[%clk 0:03:01.7]} 11. Na4
{[%clk 0:03:03.3]} 11... Nd7 {[%clk 0:02:47.6]} 12. c4 {[%clk 0:03:02.9]} 12...
Be7 {[%clk 0:02:21]} 13. Bxe7 {[%clk 0:03:02.2]} 13... Kxe7 {[%clk 0:02:21.9]}
14. Be2 {[%clk 0:03:02.7]} 14... e5 {[%clk 0:02:12.3]} 15. Rd2 {[%clk
0:03:01.3]} 15... Nf6 {[%clk 0:02:02.8]} 16. Nb6 {[%clk 0:02:58.3]} 16... Rb8
{[%clk 0:02:03.2]} 17. f3 {[%clk 0:02:56]} 17... Be6 {[%clk 0:02:00.1]} 18. Rhd1
{[%clk 0:02:56.4]} 18... Rhd8 {[%clk 0:01:59.1]} 19. a4 {[%clk 0:02:52.4]} 19...
a5 {[%clk 0:01:54.8]} 20. b3 {[%clk 0:02:49.8]} 20... Ne8 {[%clk 0:01:45.5]} 21.
g3 {[%clk 0:02:45]} 21... Nc7 {[%clk 0:01:45.2]} 22. f4 {[%clk 0:02:44.7]} 22...
f6 {[%clk 0:01:44.8]} 23. Bd3 {[%clk 0:02:41.1]} 23... Na6 {[%clk 0:01:45]} 24.
Bc2 {[%clk 0:02:41.1]} 24... Nc7 {[%clk 0:01:09.4]} 25. f5 {[%clk 0:02:34.1]}
25... Bf7 {[%clk 0:01:09]} 26. c5 {[%clk 0:02:34.7]} 26... Ne8 {[%clk
0:01:01.8]} 27. Kb2 {[%clk 0:02:24.3]} 27... Bh5 {[%clk 0:01:00.9]} 28. cxd6+
{[%clk 0:02:18.8]} 28... Rxd6 {[%clk 0:01:01.1]} 29. Rxd6 {[%clk 0:02:17.9]}
29... Nxd6 {[%clk 0:01:01.2]} 30. Rd5 {[%clk 0:02:18.5]} 30... Bf3 {[%clk
0:00:57.5]} 31. Rc5 {[%clk 0:02:18.8]} 31... Kd8 {[%clk 0:00:44.7]} 32. Rxa5
{[%clk 0:02:08.8]} 32... Bxe4 {[%clk 0:00:43.8]} 33. Bxe4 {[%clk 0:01:53.2]}
33... Nxe4 {[%clk 0:00:44.7]} 34. Rb5 {[%clk 0:01:51.3]} 34... g6 {[%clk
0:00:40.5]} 35. fxg6 {[%clk 0:01:49.1]} 35... hxg6 {[%clk 0:00:41.4]} 36. a5
{[%clk 0:01:49.2]} 36... Nd6 {[%clk 0:00:37.9]} 37. Rd5 {[%clk 0:01:47]} 37...
Kc7 {[%clk 0:00:38]} 38. Rc5+ {[%clk 0:01:47.3]} 38... Kd8 {[%clk 0:00:38]} 39.
g4 {[%clk 0:01:47.7]} 39... Ke7 {[%clk 0:00:33.6]} 40. Rc7+ {[%clk 0:01:43.7]}
40... Ke6 {[%clk 0:00:34]} 41. Nd7 {[%clk 0:01:44.2]} 41... Rh8 {[%clk
0:00:32.1]} 42. Nc5+ {[%clk 0:01:41.4]} 42... Kd5 {[%clk 0:00:32.4]} 43. Nxb7
{[%clk 0:01:42]} 43... Rxh2+ {[%clk 0:00:32.6]} 44. Kb1 {[%clk 0:01:42.3]} 44...
Nxb7 {[%clk 0:00:16.8]} 45. Rxb7 {[%clk 0:01:43.2]} 45... f5 {[%clk 0:00:08.4]}
46. gxf5 {[%clk 0:01:42.5]} 46... gxf5 {[%clk 0:00:08.5]} 47. a6 {[%clk
0:01:43.4]} 47... Rh8 {[%clk 0:00:08.7]} 48. a7 {[%clk 0:01:40.6]} 48... Ra8
{[%clk 0:00:09.3]} 49. b4 {[%clk 0:01:40.8]} 49... Kc6 {[%clk 0:00:09.8]} 50.
Rf7 {[%clk 0:01:40.7]} 50... f4 {[%clk 0:00:08.6]} 51. Kc2 {[%clk 0:01:28.1]}
51... Kb6 {[%clk 0:00:08]} 52. Kb3 {[%clk 0:01:26.3]} 52... Rxa7 {[%clk
0:00:08]} 53. Rf6+ {[%clk 0:01:26.9]} 53... Kb5 {[%clk 0:00:06.8]} 54. Re6
{[%clk 0:01:26]} 54... Rf7 {[%clk 0:00:06.9]} 55. Rxe5+ {[%clk 0:01:26.3]} 55...
Kc6 {[%clk 0:00:07.6]} 56. Re2 {[%clk 0:01:20.7]} 56... f3 {[%clk 0:00:07.7]}
57. Rf2 {[%clk 0:01:21.4]} 57... Kd5 {[%clk 0:00:08.4]} 58. Kc3 {[%clk
0:01:21.5]} 58... Ke4 {[%clk 0:00:08.6]} 59. b5 {[%clk 0:01:22]} 59... Ke3
{[%clk 0:00:08.2]} 60. Rf1 {[%clk 0:01:21.5]} 60... Ke2 {[%clk 0:00:08.5]} 61.
Rb1 {[%clk 0:01:21.6]} 61... f2 {[%clk 0:00:08.4]} 62. Kc4 {[%clk 0:01:20.5]}
62... Rd7 {[%clk 0:00:06.9]} 63. b6 {[%clk 0:01:12.3]} 63... f1=Q {[%clk
0:00:06.9]} 64. Rxf1 {[%clk 0:01:12]} 64... Kxf1 {[%clk 0:00:07.8]} 65. Kc5
{[%clk 0:01:12.9]} 65... Rb7 {[%clk 0:00:08.4]} 66. Kc6 {[%clk 0:01:13.2]} 66...
Rxb6+ {[%clk 0:00:09.3]} 67. Kxb6 {[%clk 0:01:13.7]} 1/2-1/2

[Event "Early-Titled-Tuesday-Blitz-August-29-2023"]
[Site "Chess.com"]
[Date "2023.08.29"]
[Round "7"]
[White "Carlitus2004"]
[Black "kasun_bole"]
[Result "0-1"]
[WhiteElo "2505"]
[BlackElo "2349"]
[TimeControl "180+1"]
[EndTime "9:16:55 PDT"]
[Termination "kasun_bole won by resignation"]

1. Nf3 {[%clk 0:02:56.2]} 1... Nf6 {[%clk 0:02:53.3]} 2. g3 {[%clk 0:02:54.8]}
2... c5 {[%clk 0:02:53.3]} 3. Bg2 {[%clk 0:02:55.4]} 3... Nc6 {[%clk 0:02:53.4]}
4. O-O {[%clk 0:02:55.4]} 4... d5 {[%clk 0:02:53.6]} 5. d4 {[%clk 0:02:52.9]}
5... Bg4 {[%clk 0:02:52.4]} 6. dxc5 {[%clk 0:02:37.4]} 6... e6 {[%clk
0:02:47.3]} 7. c4 {[%clk 0:02:34.7]} 7... Bxc5 {[%clk 0:02:44.5]} 8. cxd5 {[%clk
0:02:33.2]} 8... Nxd5 {[%clk 0:02:45.2]} 9. Bd2 {[%clk 0:02:32.3]} 9... O-O
{[%clk 0:02:44.6]} 10. Nc3 {[%clk 0:02:33]} 10... Nb6 {[%clk 0:02:41.8]} 11. Rc1
{[%clk 0:02:32.2]} 11... Be7 {[%clk 0:02:41.3]} 12. Ne4 {[%clk 0:02:31.3]} 12...
Rc8 {[%clk 0:02:40.4]} 13. Be3 {[%clk 0:02:27.7]} 13... Nd5 {[%clk 0:02:39.3]}
14. Bc5 {[%clk 0:02:26.3]} 14... Bf5 {[%clk 0:02:35.1]} 15. Nd4 {[%clk
0:02:11.4]} 15... Bxe4 {[%clk 0:02:23.6]} 16. Bxe4 {[%clk 0:02:01.5]} 16... Nxd4
{[%clk 0:02:22.5]} 17. Qxd4 {[%clk 0:01:56.1]} 17... Bxc5 {[%clk 0:02:21.8]} 18.
Rxc5 {[%clk 0:01:55.1]} 18... Rxc5 {[%clk 0:02:22.7]} 19. Qxc5 {[%clk 0:01:56]}
19... b6 {[%clk 0:02:22.3]} 20. Qa3 {[%clk 0:01:53.6]} 20... Nf6 {[%clk
0:02:21.2]} 21. Bf3 {[%clk 0:01:51.6]} 21... Qc7 {[%clk 0:02:19.6]} 22. Rd1
{[%clk 0:01:51.5]} 22... g6 {[%clk 0:02:18.8]} 23. Kg2 {[%clk 0:01:51.1]} 23...
Kg7 {[%clk 0:02:18.5]} 24. Qa4 {[%clk 0:01:48.2]} 24... Rc8 {[%clk 0:02:16.2]}
25. Qd4 {[%clk 0:01:47.2]} 25... Qc5 {[%clk 0:02:14.1]} 26. Qf4 {[%clk
0:01:40.2]} 26... e5 {[%clk 0:02:11.9]} 27. Qg5 {[%clk 0:01:40.2]} 27... e4
{[%clk 0:02:07]} 28. Qxc5 {[%clk 0:01:38.7]} 28... exf3+ {[%clk 0:02:07.1]} 29.
exf3 {[%clk 0:01:36.9]} 29... Rxc5 {[%clk 0:02:08]} 30. Rd2 {[%clk 0:01:35.8]}
30... h5 {[%clk 0:02:05.1]} 31. Re2 {[%clk 0:01:36.1]} 31... Rc7 {[%clk
0:02:01.9]} 32. h3 {[%clk 0:01:35.9]} 32... Kf8 {[%clk 0:02:01.3]} 33. g4 {[%clk
0:01:36.3]} 33... hxg4 {[%clk 0:02:00.7]} 34. hxg4 {[%clk 0:01:36.6]} 34... g5
{[%clk 0:02:01.1]} 35. Kg3 {[%clk 0:01:36.8]} 35... Kg7 {[%clk 0:01:59.4]} 36.
f4 {[%clk 0:01:36.4]} 36... gxf4+ {[%clk 0:01:59.4]} 37. Kxf4 {[%clk 0:01:37.3]}
37... Rc4+ {[%clk 0:01:59.6]} 38. Kf3 {[%clk 0:01:37.8]} 38... Rxg4 {[%clk
0:01:59.4]} 39. Re7 {[%clk 0:01:35.3]} 39... Ra4 {[%clk 0:01:59.2]} 40. a3
{[%clk 0:01:34.7]} 40... Ra5 {[%clk 0:01:52.4]} 41. Rb7 {[%clk 0:01:30.9]} 41...
Rb5 {[%clk 0:01:47.9]} 42. b4 {[%clk 0:01:24.3]} 42... a5 {[%clk 0:01:47.6]} 43.
bxa5 {[%clk 0:01:24.6]} 43... Rxa5 {[%clk 0:01:47.9]} 44. Rxb6 {[%clk
0:01:24.5]} 44... Rxa3+ {[%clk 0:01:48.4]} 45. Kg2 {[%clk 0:01:23.5]} 45... Ne4
{[%clk 0:01:47.6]} 46. Rb4 {[%clk 0:01:20.9]} 46... f5 {[%clk 0:01:47.3]} 47. f3
{[%clk 0:00:58.3]} 47... Nd2 {[%clk 0:01:39.6]} 48. f4 {[%clk 0:00:24]} 48...
Kg6 {[%clk 0:01:35.6]} 49. Rb8 {[%clk 0:00:19.6]} 49... Ne4 {[%clk 0:01:33.8]}
50. Rg8+ {[%clk 0:00:18.9]} 50... Kh5 {[%clk 0:01:33.6]} 51. Rg7 {[%clk
0:00:15.5]} 51... Ra6 {[%clk 0:01:32.3]} 52. Kf3 {[%clk 0:00:14.3]} 52... Ra3+
{[%clk 0:01:32.2]} 53. Ke2 {[%clk 0:00:12.6]} 53... Rg3 {[%clk 0:01:31.5]} 54.
Rf7 {[%clk 0:00:04]} 54... Kg4 {[%clk 0:01:31.2]} 55. Rh7 {[%clk 0:00:02.4]}
55... Kxf4 {[%clk 0:01:31.1]} 56. Rh4+ {[%clk 0:00:02]} 56... Rg4 {[%clk
0:01:31.7]} 57. Rh7 {[%clk 0:00:02.5]} 57... Kg3 {[%clk 0:01:30.7]} 58. Ke3
{[%clk 0:00:02.4]} 58... Nf2 {[%clk 0:01:29.6]} 59. Rc7 {[%clk 0:00:01.8]} 59...
f4+ {[%clk 0:01:29.6]} 60. Ke2 {[%clk 0:00:02.2]} 60... f3+ {[%clk 0:01:29.8]}
61. Ke3 {[%clk 0:00:03.1]} 61... Re4+ {[%clk 0:01:29.7]} 62. Kd2 {[%clk
0:00:03]} 62... Ng4 {[%clk 0:01:29.5]} 63. Rg7 {[%clk 0:00:02.7]} 63... f2
{[%clk 0:01:29.6]} 64. Rf7 {[%clk 0:00:03]} 64... Rf4 {[%clk 0:01:29.8]} 65.
Rxf4 {[%clk 0:00:03.7]} 65... Kxf4 {[%clk 0:01:29.9]} 66. Ke2 {[%clk 0:00:04.6]}
66... Kg3 {[%clk 0:01:29.4]} 67. Kf1 {[%clk 0:00:05.3]} 67... Ne3+ {[%clk
0:01:29.5]} 68. Ke2 {[%clk 0:00:05.2]} 68... f1=Q+ {[%clk 0:01:30]} 0-1

[Event "Early-Titled-Tuesday-Blitz-August-29-2023"]
[Site "Chess.com"]
[Date "2023.08.29"]
[Round "7"]
[White "CraiggoryC"]
[Black "LUISMIGUELOV"]
[Result "1-0"]
[WhiteElo "2190"]
[BlackElo "2104"]
[TimeControl "180+1"]
[EndTime "9:16:56 PDT"]
[Termination "CraiggoryC won on time"]

1. e4 {[%clk 0:01:35.3]} 1... c6 {[%clk 0:03:00.9]} 2. d4 {[%clk 0:01:35.1]}
2... d5 {[%clk 0:03:00.2]} 3. e5 {[%clk 0:01:35.7]} 3... c5 {[%clk 0:02:58.7]}
4. dxc5 {[%clk 0:01:34.8]} 4... Nc6 {[%clk 0:02:57.5]} 5. a3 {[%clk 0:01:33.3]}
5... Nxe5 {[%clk 0:02:32.4]} 6. b4 {[%clk 0:01:32.9]} 6... e6 {[%clk 0:02:22.6]}
7. Bb2 {[%clk 0:01:32.6]} 7... Nc6 {[%clk 0:02:16]} 8. Nf3 {[%clk 0:01:27]} 8...
Nf6 {[%clk 0:02:14.9]} 9. Bd3 {[%clk 0:01:25.8]} 9... Be7 {[%clk 0:02:14.3]} 10.
O-O {[%clk 0:01:25.5]} 10... a6 {[%clk 0:02:12.3]} 11. Nbd2 {[%clk 0:01:15.1]}
11... b6 {[%clk 0:02:07.7]} 12. cxb6 {[%clk 0:01:05.3]} 12... Qxb6 {[%clk
0:02:06.3]} 13. c4 {[%clk 0:01:05.9]} 13... dxc4 {[%clk 0:01:56]} 14. Nxc4
{[%clk 0:01:06.8]} 14... Qc7 {[%clk 0:01:55.5]} 15. Rc1 {[%clk 0:01:01]} 15...
O-O {[%clk 0:01:50.3]} 16. Nce5 {[%clk 0:00:50.6]} 16... Bb7 {[%clk 0:01:32.8]}
17. Nxc6 {[%clk 0:00:49.7]} 17... Bxc6 {[%clk 0:01:31]} 18. Ne5 {[%clk
0:00:50.3]} 18... Bd6 {[%clk 0:01:06.9]} 19. Rxc6 {[%clk 0:00:45.1]} 19... Qb8
{[%clk 0:01:07]} 20. Rxd6 {[%clk 0:00:45.1]} 20... a5 {[%clk 0:00:41.7]} 21. Nd7
{[%clk 0:00:30.4]} 21... Nxd7 {[%clk 0:00:39.5]} 22. Rxd7 {[%clk 0:00:31.3]}
22... axb4 {[%clk 0:00:39.5]} 23. Qh5 {[%clk 0:00:26.4]} 23... h6 {[%clk
0:00:36.1]} 24. Bxg7 {[%clk 0:00:14.5]} 24... Kxg7 {[%clk 0:00:35.2]} 25. Qg4+
{[%clk 0:00:13.4]} 25... Kf6 {[%clk 0:00:25.2]} 26. Qh4+ {[%clk 0:00:12.5]}
26... Kg7 {[%clk 0:00:24.7]} 27. Qg4+ {[%clk 0:00:11.2]} 27... Kf6 {[%clk
0:00:24.6]} 28. Qh4+ {[%clk 0:00:10.5]} 28... Kg7 {[%clk 0:00:24.6]} 29. axb4
{[%clk 0:00:09.4]} 29... Qe5 {[%clk 0:00:19.6]} 30. Qe4 {[%clk 0:00:09.2]} 30...
Qxe4 {[%clk 0:00:16.9]} 31. Bxe4 {[%clk 0:00:10.1]} 31... Rab8 {[%clk
0:00:16.2]} 32. Rb1 {[%clk 0:00:10.2]} 32... Rb6 {[%clk 0:00:11.7]} 33. b5
{[%clk 0:00:10]} 33... Kf6 {[%clk 0:00:09.1]} 34. g3 {[%clk 0:00:09.9]} 34...
Ke5 {[%clk 0:00:08.5]} 35. Bf3 {[%clk 0:00:09.4]} 35... f5 {[%clk 0:00:07.6]}
36. Be2 {[%clk 0:00:09.3]} 36... Rc8 {[%clk 0:00:05.1]} 37. Rbd1 {[%clk
0:00:09]} 37... Rc5 {[%clk 0:00:04]} 38. Kf1 {[%clk 0:00:09.1]} 38... f4 {[%clk
0:00:02.6]} 39. Re1 {[%clk 0:00:08.4]} 1-0

[Event "Early-Titled-Tuesday-Blitz-August-29-2023"]
[Site "Chess.com"]
[Date "2023.08.29"]
[Round "7"]
[White "ferrufino64"]
[Black "Yuruultei"]
[Result "0-1"]
[WhiteElo "2109"]
[BlackElo "2392"]
[TimeControl "180+1"]
[EndTime "9:16:57 PDT"]
[Termination "Yuruultei won on time"]

1. e4 {[%clk 0:02:54.1]} 1... c5 {[%clk 0:01:24.7]} 2. Nf3 {[%clk 0:02:21.7]}
2... e6 {[%clk 0:01:20.6]} 3. d4 {[%clk 0:02:22]} 3... cxd4 {[%clk 0:01:21.5]}
4. Nxd4 {[%clk 0:02:22.6]} 4... Nc6 {[%clk 0:01:22.4]} 5. Nc3 {[%clk 0:02:22.5]}
5... Qc7 {[%clk 0:01:22.9]} 6. a3 {[%clk 0:02:22.9]} 6... a6 {[%clk 0:01:22.2]}
7. Be3 {[%clk 0:02:23.2]} 7... Nf6 {[%clk 0:01:22.4]} 8. f3 {[%clk 0:02:23.8]}
8... d6 {[%clk 0:01:20.2]} 9. Qd2 {[%clk 0:02:24.3]} 9... b5 {[%clk 0:01:20.6]}
10. g4 {[%clk 0:02:24.7]} 10... Bb7 {[%clk 0:01:18.5]} 11. h4 {[%clk 0:02:24.9]}
11... Ne5 {[%clk 0:01:17.5]} 12. h5 {[%clk 0:02:24.5]} 12... h6 {[%clk
0:01:07.7]} 13. O-O-O {[%clk 0:02:24.1]} 13... Qa5 {[%clk 0:01:05.1]} 14. Nb3
{[%clk 0:02:20.6]} 14... Qc7 {[%clk 0:01:03]} 15. Be2 {[%clk 0:02:20.5]} 15...
Rc8 {[%clk 0:01:02.3]} 16. Kb1 {[%clk 0:02:20.4]} 16... Be7 {[%clk 0:00:57.7]}
17. Rhg1 {[%clk 0:02:16.3]} 17... d5 {[%clk 0:00:55.5]} 18. f4 {[%clk
0:02:11.7]} 18... Nc4 {[%clk 0:00:52.9]} 19. Bxc4 {[%clk 0:02:10.3]} 19... dxc4
{[%clk 0:00:44]} 20. Nd4 {[%clk 0:02:10.4]} 20... Nxe4 {[%clk 0:00:43.7]} 21.
Nxe4 {[%clk 0:02:09.9]} 21... Bxe4 {[%clk 0:00:43.9]} 22. g5 {[%clk 0:02:09.9]}
22... c3 {[%clk 0:00:36.6]} 23. bxc3 {[%clk 0:02:03]} 23... Qxc3 {[%clk
0:00:34.1]} 24. gxh6 {[%clk 0:01:05.1]} 24... gxh6 {[%clk 0:00:30.4]} 25. f5
{[%clk 0:00:57.6]} 25... e5 {[%clk 0:00:28.7]} 26. Qxc3 {[%clk 0:00:48.7]} 26...
Rxc3 {[%clk 0:00:26.6]} 27. f6 {[%clk 0:00:34.6]} 27... Bxf6 {[%clk 0:00:18.6]}
28. Rge1 {[%clk 0:00:19.4]} 28... Kf8 {[%clk 0:00:14.2]} 29. Kb2 {[%clk
0:00:14.1]} 29... Rc8 {[%clk 0:00:13.2]} 30. Bd2 {[%clk 0:00:04.2]} 30... Bh7
{[%clk 0:00:12.8]} 31. Bb4+ {[%clk 0:00:04.2]} 31... Kg8 {[%clk 0:00:08.3]} 32.
Rg1+ {[%clk 0:00:03.9]} 32... Bg7 {[%clk 0:00:08.5]} 33. Nf3 {[%clk 0:00:01.8]}
33... Rxc2+ {[%clk 0:00:07.9]} 34. Kb3 {[%clk 0:00:01.7]} 34... Rc8 {[%clk
0:00:06.7]} 35. Rg2 {[%clk 0:00:01.4]} 35... Bc2+ {[%clk 0:00:05.5]} 0-1

[Event "Early-Titled-Tuesday-Blitz-August-29-2023"]
[Site "Chess.com"]
[Date "2023.08.29"]
[Round "7"]
[White "Druid24"]
[Black "MITerryble"]
[Result "1-0"]
[WhiteElo "2671"]
[BlackElo "2920"]
[TimeControl "180+1"]
[EndTime "9:16:59 PDT"]
[Termination "Druid24 won on time"]

1. d4 {[%clk 0:03:00.9]} 1... e6 {[%clk 0:02:56.1]} 2. c4 {[%clk 0:02:59.3]}
2... Bb4+ {[%clk 0:02:55.8]} 3. Bd2 {[%clk 0:02:58.5]} 3... c5 {[%clk
0:02:50.2]} 4. a3 {[%clk 0:02:57.9]} 4... Bxd2+ {[%clk 0:02:48.2]} 5. Qxd2
{[%clk 0:02:58.8]} 5... cxd4 {[%clk 0:02:49]} 6. Qxd4 {[%clk 0:02:58.2]} 6...
Nf6 {[%clk 0:02:49.6]} 7. Nc3 {[%clk 0:02:58.5]} 7... Nc6 {[%clk 0:02:49.7]} 8.
Qh4 {[%clk 0:02:55]} 8... O-O {[%clk 0:02:48.1]} 9. Nf3 {[%clk 0:02:55]} 9... d6
{[%clk 0:02:29.8]} 10. e3 {[%clk 0:02:52.4]} 10... Qe7 {[%clk 0:02:29.1]} 11.
Rd1 {[%clk 0:02:50.9]} 11... Rd8 {[%clk 0:02:28.6]} 12. Bd3 {[%clk 0:02:50]}
12... h6 {[%clk 0:02:23.7]} 13. O-O {[%clk 0:02:42.7]} 13... b6 {[%clk 0:02:16]}
14. Rd2 {[%clk 0:02:39.8]} 14... Bb7 {[%clk 0:02:15.9]} 15. Rfd1 {[%clk
0:02:39.1]} 15... Rac8 {[%clk 0:02:12.5]} 16. Be2 {[%clk 0:02:00.6]} 16... a6
{[%clk 0:01:40.4]} 17. Qg3 {[%clk 0:01:56.3]} 17... Nh5 {[%clk 0:01:31.6]} 18.
Qh3 {[%clk 0:01:56.4]} 18... Nf6 {[%clk 0:01:29.4]} 19. Qg3 {[%clk 0:01:56.3]}
19... Nh5 {[%clk 0:00:21.5]} 20. Qh4 {[%clk 0:01:56]} 20... Nf6 {[%clk
0:00:19.5]} 21. b4 {[%clk 0:01:51.1]} 21... Rd7 {[%clk 0:00:15.9]} 22. Na4
{[%clk 0:01:47.4]} 22... Qd8 {[%clk 0:00:15.5]} 23. h3 {[%clk 0:01:26.1]} 23...
Qc7 {[%clk 0:00:14.5]} 24. Qg3 {[%clk 0:01:23.9]} 24... Ne4 {[%clk 0:00:12.9]}
25. Qh4 {[%clk 0:01:13]} 25... Nxd2 {[%clk 0:00:13.1]} 26. Rxd2 {[%clk
0:01:12.3]} 26... Rcd8 {[%clk 0:00:13.4]} 27. Nb2 {[%clk 0:01:04.1]} 27... Ne5
{[%clk 0:00:10.2]} 28. Nd4 {[%clk 0:01:04.3]} 28... Ng6 {[%clk 0:00:10]} 29. Qg3
{[%clk 0:01:04.7]} 29... d5 {[%clk 0:00:09.7]} 30. Rc2 {[%clk 0:01:00.5]} 30...
Qxg3 {[%clk 0:00:09.5]} 31. fxg3 {[%clk 0:00:59.4]} 31... Rc7 {[%clk 0:00:08.5]}
32. c5 {[%clk 0:00:58.9]} 32... bxc5 {[%clk 0:00:08.5]} 33. bxc5 {[%clk
0:00:59.8]} 33... Ne7 {[%clk 0:00:05.7]} 34. Nd3 {[%clk 0:00:58.7]} 34... Nc6
{[%clk 0:00:06]} 35. Nb4 {[%clk 0:00:57]} 35... Ne5 {[%clk 0:00:04.1]} 36. c6
{[%clk 0:00:55.5]} 36... Bc8 {[%clk 0:00:04]} 37. Bxa6 {[%clk 0:00:54.5]} 37...
Bxa6 {[%clk 0:00:03]} 38. Nxa6 {[%clk 0:00:55.4]} 38... Rcc8 {[%clk 0:00:02.6]}
39. Rc5 {[%clk 0:00:34.9]} 39... Rd6 {[%clk 0:00:02.6]} 40. Nb4 {[%clk
0:00:34.3]} 40... Nc4 {[%clk 0:00:02.4]} 41. a4 {[%clk 0:00:32.1]} 41... e5
{[%clk 0:00:02.1]} 42. Nb5 {[%clk 0:00:29.6]} 42... Rdd8 {[%clk 0:00:02]} 43.
Rxd5 {[%clk 0:00:29.5]} 43... Nxe3 {[%clk 0:00:01.9]} 44. Rxd8+ {[%clk
0:00:24.2]} 44... Rxd8 {[%clk 0:00:02.8]} 45. c7 {[%clk 0:00:22.9]} 45... Rd1+
{[%clk 0:00:02.9]} 46. Kf2 {[%clk 0:00:22.7]} 1-0

[Event "Early-Titled-Tuesday-Blitz-August-29-2023"]
[Site "Chess.com"]
[Date "2023.08.29"]
[Round "7"]
[White "lamomiajunior"]
[Black "SaqoChess_Twitch"]
[Result "0-1"]
[WhiteElo "2790"]
[BlackElo "2631"]
[TimeControl "180+1"]
[EndTime "9:16:59 PDT"]
[Termination "SaqoChess_Twitch won on time"]

1. d4 {[%clk 0:03:00.9]} 1... d5 {[%clk 0:02:57.2]} 2. Nc3 {[%clk 0:03:01.4]}
2... Nf6 {[%clk 0:02:56.5]} 3. Bf4 {[%clk 0:03:02]} 3... a6 {[%clk 0:02:56.1]}
4. e3 {[%clk 0:03:02.2]} 4... c5 {[%clk 0:02:56.4]} 5. dxc5 {[%clk 0:03:02.4]}
5... Nc6 {[%clk 0:02:56.9]} 6. a3 {[%clk 0:03:03.1]} 6... e5 {[%clk 0:02:57.1]}
7. Bg5 {[%clk 0:03:03.8]} 7... Be6 {[%clk 0:02:50.9]} 8. b4 {[%clk 0:03:04.4]}
8... Be7 {[%clk 0:02:49.1]} 9. Nf3 {[%clk 0:03:04]} 9... O-O {[%clk 0:02:46.9]}
10. Be2 {[%clk 0:03:03.3]} 10... h6 {[%clk 0:02:38.9]} 11. Bxf6 {[%clk
0:03:02.7]} 11... Bxf6 {[%clk 0:02:39.5]} 12. O-O {[%clk 0:03:02.6]} 12... a5
{[%clk 0:02:30.6]} 13. b5 {[%clk 0:02:57.7]} 13... Ne7 {[%clk 0:02:30.1]} 14.
Na4 {[%clk 0:02:53.5]} 14... Rc8 {[%clk 0:02:24.3]} 15. Rc1 {[%clk 0:02:48.9]}
15... Nf5 {[%clk 0:02:22.5]} 16. c4 {[%clk 0:02:45.5]} 16... d4 {[%clk
0:02:20.4]} 17. exd4 {[%clk 0:02:35.9]} 17... e4 {[%clk 0:02:20.5]} 18. d5
{[%clk 0:02:28.3]} 18... exf3 {[%clk 0:02:16.8]} 19. Bxf3 {[%clk 0:02:29.2]}
19... Bd7 {[%clk 0:02:06.1]} 20. c6 {[%clk 0:02:28.5]} 20... bxc6 {[%clk
0:02:06]} 21. dxc6 {[%clk 0:02:27]} 21... Be6 {[%clk 0:02:05.1]} 22. Bd5 {[%clk
0:02:05.2]} 22... Nd4 {[%clk 0:01:58.9]} 23. Bxe6 {[%clk 0:02:04.6]} 23... Nxe6
{[%clk 0:01:54.9]} 24. Nb6 {[%clk 0:01:59.7]} 24... Qxb6 {[%clk 0:01:53.8]} 25.
a4 {[%clk 0:01:56.8]} 25... Rfd8 {[%clk 0:01:52.8]} 26. Qg4 {[%clk 0:01:56.5]}
26... Rd4 {[%clk 0:01:49.5]} 27. Qf3 {[%clk 0:01:54.5]} 27... Rcd8 {[%clk
0:01:46.6]} 28. Rfe1 {[%clk 0:01:50.7]} 28... Rf4 {[%clk 0:01:46.1]} 29. c5
{[%clk 0:01:47]} 29... Qxc5 {[%clk 0:01:25.4]} 30. Rxc5 {[%clk 0:01:31.9]} 30...
Rxf3 {[%clk 0:01:07.3]} 31. c7 {[%clk 0:01:16.3]} 31... Rc8 {[%clk 0:01:01.5]}
32. Rxe6 {[%clk 0:01:14.5]} 32... Ra3 {[%clk 0:00:26.1]} 33. Re1 {[%clk
0:01:08.2]} 33... Rxa4 {[%clk 0:00:26.7]} 34. h3 {[%clk 0:00:49.4]} 34... Rb4
{[%clk 0:00:25.5]} 35. Rd1 {[%clk 0:00:46.5]} 35... a4 {[%clk 0:00:24.7]} 36.
Rc6 {[%clk 0:00:37.5]} 36... Kh7 {[%clk 0:00:17.4]} 37. b6 {[%clk 0:00:37.3]}
37... a3 {[%clk 0:00:17.3]} 38. Rxf6 {[%clk 0:00:07.4]} 38... gxf6 {[%clk
0:00:18.2]} 39. Rd8 {[%clk 0:00:07.7]} 39... a2 {[%clk 0:00:18.3]} 40. Rxc8
{[%clk 0:00:08.1]} 40... a1=Q+ {[%clk 0:00:18.9]} 41. Kh2 {[%clk 0:00:08.9]}
41... Qe5+ {[%clk 0:00:19.6]} 42. g3 {[%clk 0:00:09.5]} 42... Qf5 {[%clk
0:00:18.3]} 0-1